bitfinex/quotes_BTCUSD_20241025
["timestamp","ask_amount","ask_price","bid_price","bid_amount"]
[1729848622482,0.10413789,67638.0,67636.0,0.147849]
[1729848623095,0.10413789,67638.0,67637.0,0.147848]
[1729848624737,0.10413789,67638.0,67636.0,0.14785]
[1729848625619,0.10413789,67638.0,67636.0,0.147849]
[1729848626068,0.10413789,67641.0,67636.0,0.2957]
[1729848626312,0.10413789,67641.0,67637.0,0.147847]
[1729848626950,0.10413789,67641.0,67637.0,0.14536858]
[1729848629352,0.10413789,67641.0,67637.0,0.14701658]
[1729848630027,0.10413789,67641.0,67638.0,0.147845]
[1729848630545,0.10413789,67641.0,67637.0,0.149495]
[1729848633236,0.10413789,67641.0,67639.0,0.147842]
[1729848633701,0.10413789,67641.0,67637.0,0.297343]
[1729848633927,0.10413789,67641.0,67637.0,0.149495]
[1729848635531,0.10413789,67641.0,67637.0,0.001648]
[1729848635764,0.10413789,67641.0,67638.0,0.147845]
[1729848638430,0.10413789,67641.0,67637.0,0.001648]
[1729848638638,0.10413789,67638.0,67637.0,0.149494]
[1729848640196,0.10413789,67641.0,67638.0,0.147844]
[1729848640642,0.10413789,67641.0,67640.0,0.147841]
[1729848640866,0.10413789,67641.0,67638.0,0.443533]
[1729848641073,0.10413789,67641.0,67639.0,0.147842]
[1729848641290,0.000824,67642.0,67639.0,0.147842]
[1729848641499,0.15132781,67642.0,67639.0,0.147842]
[1729848642167,0.15132781,67642.0,67640.0,0.14784]
[1729848642745,0.15132781,67642.0,67641.0,0.147839]
[1729848642971,0.15132781,67642.0,67639.0,0.443528]
[1729848643188,0.15132781,67642.0,67640.0,0.14784]
[1729848643397,0.000824,67642.0,67641.0,0.36928861]
[1729848643771,0.000824,67642.0,67641.0,0.25026217]
[1729848644636,0.000824,67642.0,67641.0,0.15246217]
[1729848652827,0.000824,67642.0,67641.0,0.15746217]
[1729848653051,0.000824,67642.0,67641.0,0.33246217]
[1729848658059,0.000824,67642.0,67641.0,0.33985832]
[1729848658506,0.000824,67642.0,67641.0,0.33645832]
[1729848662437,0.000824,67642.0,67641.0,0.33645753]
[1729848664503,0.000824,67642.0,67641.0,0.16485753]
[1729848670305,0.000824,67642.0,67641.0,0.17592928]
[1729848671649,0.000824,67642.0,67641.0,0.16411974]
[1729848671860,0.000824,67642.0,67641.0,0.15210121]
[1729848672081,0.000824,67642.0,67641.0,0.16412102]
[1729848673260,0.10496189,67642.0,67641.0,0.14804801]
[1729848673487,0.10496189,67642.0,67641.0,0.14342549]
[1729848673724,0.10496189,67642.0,67641.0,0.14804848]
[1729848674166,0.000824,67642.0,67641.0,0.14065216]
[1729848674419,0.000824,67642.0,67641.0,0.14804848]
[1729848677263,0.000824,67642.0,67641.0,0.14065216]
[1729848677477,0.000824,67642.0,67641.0,0.14804848]
[1729848677697,0.000824,67642.0,67641.0,0.14745051]
[1729848678139,0.167264,67642.0,67641.0,0.14745051]
[1729848678349,0.27140189,67642.0,67641.0,0.14005419]
[1729848679686,0.10500189,67642.0,67641.0,0.14005419]
[1729848680349,0.10500189,67642.0,67641.0,0.14745061]
[1729848680559,0.10500189,67642.0,67641.0,0.14745059]
[1729848680775,0.000864,67642.0,67641.0,0.14745073]
[1729848683541,0.000864,67642.0,67641.0,0.15245073]
[1729848683753,0.000864,67642.0,67641.0,0.24503189]
[1729848684404,0.000864,67642.0,67641.0,0.24503123]
[1729848684617,0.000864,67642.0,67641.0,0.15245007]
[1729848687528,0.000864,67642.0,67641.0,0.14745007]
[1729848688018,0.092064,67642.0,67641.0,0.14745095]
[1729848688227,0.174064,67642.0,67641.0,0.14005436]
[1729848688449,0.174064,67642.0,67641.0,0.14170236]
[1729848688670,0.174064,67642.0,67641.0,0.13707949]
[1729848689824,0.32456781,67642.0,67641.0,0.001648]
[1729848690516,0.32656781,67642.0,67641.0,0.001648]
[1729848690730,0.32456781,67642.0,67641.0,0.001648]
[1729848691162,0.47240481,67642.0,67641.0,0.001648]
[1729848691647,0.5765427,67642.0,67641.0,0.001648]
[1729848691862,0.5815427,67642.0,67641.0,0.001648]
[1729848692092,0.6815427,67642.0,67641.0,0.001648]
[1729848692310,0.74992234,67642.0,67641.0,0.001648]
[1729848692525,0.6835427,67642.0,67641.0,0.001648]
[1729848693628,0.74986983,67642.0,67641.0,0.001648]
[1729848695865,0.93688388,67642.0,67641.0,0.001648]
[1729848696299,1.04751662,67642.0,67641.0,0.001648]
[1729848696527,0.93688388,67642.0,67641.0,0.001648]
[1729848697593,1.02521082,67642.0,67641.0,0.001648]
[1729848698385,0.94688388,67642.0,67641.0,0.001648]
[1729848698634,0.001,67628.0,67627.0,0.22309761]
[1729848698868,0.6977087,67628.0,67627.0,0.001648]
[1729848699085,0.15488,67622.0,67621.0,0.001648]
[1729848699311,0.57858381,67622.0,67621.0,0.001648]
[1729848699546,0.58858381,67622.0,67621.0,0.001648]
[1729848699763,0.58858381,67622.0,67612.0,0.22144961]
[1729848699764,0.438083,67621.0,67612.0,0.22144961]
[1729848699983,0.63637578,67613.0,67612.0,0.22144961]
[1729848700237,0.005,67610.0,67600.0,0.000824]
[1729848700459,0.61368659,67610.0,67600.0,0.000824]
[1729848700710,0.61168659,67610.0,67600.0,0.000824]
[1729848700889,0.65766627,67610.0,67600.0,0.000824]
[1729848701118,0.63410183,67610.0,67600.0,0.000824]
[1729848701756,1.18445525,67610.0,67600.0,0.000824]
[1729848701925,0.46120178,67601.0,67600.0,0.000824]
[1729848702096,0.5075677,67601.0,67600.0,0.000824]
[1729848702302,0.70633277,67601.0,67600.0,0.000824]
[1729848704334,0.72742674,67601.0,67600.0,0.000824]
[1729848704561,0.40695529,67601.0,67600.0,0.000824]
[1729848705597,0.55840677,67601.0,67600.0,0.000824]
[1729848705827,0.40695529,67601.0,67600.0,0.000824]
[1729848705949,0.30695529,67601.0,67600.0,0.000824]
[1729848706169,0.30195529,67601.0,67600.0,0.000824]
[1729848706385,0.15145148,67601.0,67600.0,0.000824]
[1729848706634,0.15145148,67601.0,67600.0,0.148752]
[1729848706835,0.15145148,67605.0,67603.0,0.147921]
[1729848707035,0.15145148,67609.0,67600.0,0.081324]
[1729848707236,0.15145148,67605.0,67604.0,0.147919]
[1729848707439,0.15145148,67605.0,67604.0,0.14792]
[1729848707659,0.15145148,67605.0,67600.0,0.081324]
[1729848712428,0.15145148,67601.0,67600.0,0.000824]
[1729848714874,0.15145148,67601.0,67600.0,0.148752]
[1729848715532,0.15145148,67601.0,67600.0,0.000824]
[1729848715737,0.15145148,67601.0,67600.0,0.148752]
[1729848716644,0.22144961,67610.0,67602.0,0.295845]
[1729848716942,0.15145148,67601.0,67600.0,0.444609]
[1729848717402,0.22144961,67610.0,67600.0,0.296681]
[1729848717403,0.15145148,67605.0,67600.0,0.296681]
[1729848717616,0.15145148,67605.0,67604.0,0.14792]
[1729848719710,0.15550381,67617.0,67602.0,0.0822]
[1729848719711,0.15145148,67614.0,67602.0,0.0822]
[1729848719932,0.22144961,67611.0,67608.0,0.295822]
[1729848720150,0.22144961,67611.0,67610.0,0.147906]
[1729848720375,0.15145148,67611.0,67610.0,0.147906]
[1729848720593,0.15145148,67611.0,67606.0,0.295827]
[1729848721077,0.15145148,67611.0,67609.0,0.147909]
[1729848721292,0.15145148,67611.0,67610.0,0.147907]
[1729848725206,0.15309948,67611.0,67610.0,0.147907]
[1729848725653,0.15309948,67611.0,67607.0,0.295823]
[1729848725896,0.15309948,67611.0,67609.0,0.147908]
[1729848726117,0.15309948,67611.0,67610.0,0.147907]
[1729848726580,0.15309948,67611.0,67608.0,0.14791]
[1729848726814,0.15309948,67611.0,67609.0,0.147909]
[1729848727030,0.15145148,67610.0,67609.0,0.147909]
[1729848728465,0.15145148,67610.0,67606.0,0.295831]
[1729848729602,0.15145148,67610.0,67609.0,0.147909]
[1729848731524,0.15145148,67610.0,67606.0,0.295831]
[1729848731744,0.15145148,67610.0,67607.0,0.147913]
[1729848731969,0.15145148,67610.0,67600.0,0.000824]
[1729848732270,0.15145148,67610.0,67605.0,0.147916]
[1729848732923,0.15145148,67610.0,67606.0,0.147915]
[1729848733378,0.15145148,67610.0,67607.0,0.147913]
[1729848734284,0.15145148,67610.0,67604.0,0.29584]
[1729848734515,0.147909,67609.0,67605.0,0.147917]
[1729848734772,0.147911,67608.0,67604.0,0.147918]
[1729848734993,0.15145148,67610.0,67603.0,0.295844]
[1729848734994,0.15145148,67610.0,67605.0,0.147917]
[1729848735210,0.15145148,67606.0,67605.0,0.147917]
[1729848736333,0.10431683,67606.0,67605.0,0.000824]
[1729848736547,0.10431683,67606.0,67605.0,0.148742]
[1729848739563,0.001648,67611.0,67608.0,0.147911]
[1729848739564,0.10431683,67609.0,67608.0,0.147911]
[1729848740050,0.10431683,67609.0,67608.0,0.15253675]
[1729848740504,0.001648,67611.0,67610.0,0.147907]
[1729848743772,0.001648,67611.0,67610.0,0.15253257]
[1729848744218,0.001648,67611.0,67610.0,0.15253253]
[1729848747718,0.001648,67611.0,67610.0,0.1558647]
[1729848747930,0.001648,67611.0,67610.0,0.16030683]
[1729848753372,0.001648,67611.0,67610.0,0.152907]
[1729848754230,0.001648,67611.0,67610.0,0.16030682]
[1729848754440,0.001648,67611.0,67610.0,0.152907]
[1729848756010,0.001648,67611.0,67610.0,0.147907]
[1729848758216,0.001648,67611.0,67607.0,0.295824]
[1729848758217,0.32559249,67611.0,67607.0,0.295824]
[1729848758418,0.32559249,67611.0,67607.0,0.443736]
[1729848758625,0.32559249,67611.0,67609.0,0.147907]
[1729848759525,0.32559249,67611.0,67610.0,0.147907]
[1729848760347,0.27855009,67611.0,67610.0,0.147907]
[1729848761172,0.27855009,67611.0,67609.0,0.000824]
[1729848761797,0.27855009,67611.0,67609.0,0.148732]
[1729848762210,0.147907,67610.0,67609.0,0.000824]
[1729848762684,0.4027129,67610.0,67609.0,0.000824]
[1729848762882,0.46904233,67610.0,67609.0,0.000824]
[1729848763092,0.36474024,67610.0,67609.0,0.000824]
[1729848764027,0.29841081,67610.0,67609.0,0.000824]
[1729848765087,0.15050381,67610.0,67609.0,0.000824]
[1729848766131,0.29841081,67610.0,67609.0,0.000824]
[1729848766336,0.15050381,67610.0,67609.0,0.000824]
[1729848771426,0.15215181,67610.0,67609.0,0.000824]
[1729848773334,0.15215181,67610.0,67609.0,0.148733]
[1729848775459,0.19637665,67610.0,67609.0,0.148733]
[1729848775682,0.001648,67610.0,67609.0,0.148733]
[1729848775894,0.10595009,67610.0,67609.0,0.148733]
[1729848776337,0.001648,67610.0,67609.0,0.148733]
[1729848783962,0.001648,67610.0,67609.0,0.148733]
[1729848787763,0.001648,67610.0,67609.0,0.240433]
[1729848794122,0.001648,67610.0,67609.0,0.24783296]
[1729848794334,0.001648,67610.0,67609.0,0.240433]
[1729848794981,0.001648,67610.0,67609.0,0.24783292]
[1729848795426,0.001648,67610.0,67609.0,0.240433]
[1729848798976,0.001648,67610.0,67609.0,0.148733]
[1729848804393,0.173148,67610.0,67609.0,0.148733]
[1729848806590,0.001648,67610.0,67609.0,0.148733]
[1729848815475,1.001648,67610.0,67609.0,0.148733]
[1729848830322,1.001648,67610.0,67609.0,0.15335847]
[1729848833032,1.001648,67610.0,67609.0,0.15335849]
[1729848833247,1.001648,67610.0,67609.0,0.148733]
[1729848833463,1.001648,67610.0,67609.0,0.15335849]
[1729848834127,1.003888,67610.0,67609.0,0.15335849]
[1729848836814,1.003888,67610.0,67609.0,0.15335846]
[1729848840281,1.003888,67610.0,67609.0,0.160759]
[1729848840495,1.003888,67610.0,67609.0,0.148733]
[1729848840720,1.003888,67610.0,67609.0,0.16075819]
[1729848842779,1.003888,67610.0,67609.0,0.316262]
[1729848842990,1.003888,67610.0,67609.0,0.47873681]
[1729848843204,1.003888,67610.0,67609.0,0.49076116]
[1729848846242,1.003888,67610.0,67609.0,0.51376116]
[1729848847656,1.003888,67610.0,67609.0,0.53425034]
[1729848852312,1.003888,67610.0,67609.0,0.64425034]
[1729848854892,1.003888,67610.0,67609.0,0.63222599]
[1729848855200,1.003888,67610.0,67609.0,0.64424913]
[1729848855505,1.003888,67610.0,67609.0,0.46974913]
[1729848857099,1.003888,67610.0,67609.0,0.18624532]
[1729848857321,1.003888,67610.0,67609.0,0.16575614]
[1729848858917,1.178788,67610.0,67609.0,0.15335728]
[1729848859407,1.178788,67610.0,67609.0,0.148733]
[1729848861022,1.178788,67610.0,67609.0,0.000824]
[1729848861249,1.32929181,67610.0,67609.0,0.000824]
[1729848861756,1.47719881,67610.0,67609.0,0.000824]
[1729848862009,1.47719881,67610.0,67605.0,0.000824]
[1729848862010,0.147915,67606.0,67605.0,0.000824]
[1729848862238,0.47831881,67606.0,67605.0,0.000824]
[1729848862693,0.52250451,67606.0,67605.0,0.000824]
[1729848863371,0.47831881,67606.0,67605.0,0.000824]
[1729848863607,0.147926,67601.0,67599.0,0.000836]
[1729848863826,0.47332981,67601.0,67599.0,0.000836]
[1729848864047,0.51751551,67601.0,67599.0,0.000836]
[1729848864268,0.47332981,67601.0,67599.0,0.000836]
[1729848864487,0.51751551,67601.0,67599.0,0.000836]
[1729848864709,0.147934,67598.0,67591.0,0.000836]
[1729848864929,0.169,67593.0,67591.0,0.000836]
[1729848865806,0.169,67593.0,67591.0,0.148784]
[1729848866045,0.316944,67593.0,67591.0,0.000836]
[1729848866794,0.29844981,67592.0,67591.0,0.000836]
[1729848868632,0.58184981,67592.0,67591.0,0.000836]
[1729848868895,0.149953,67589.0,67588.0,0.0013189]
[1729848869135,0.58185681,67589.0,67588.0,0.0013189]
[1729848869606,0.57985681,67589.0,67588.0,0.0013189]
[1729848872010,0.70033811,67589.0,67588.0,0.0013189]
[1729848874891,0.57985681,67589.0,67588.0,0.0013189]
[1729848876609,0.57985681,67589.0,67588.0,0.0021429]
[1729848877791,0.005,67587.0,67582.0,0.147967]
[1729848878022,0.29846381,67586.0,67582.0,0.147967]
[1729848878463,0.147964,67584.0,67580.0,0.147971]
[1729848878681,0.15050381,67583.0,67581.0,0.147968]
[1729848879553,0.2764,67589.0,67571.0,0.005]
[1729848879802,0.2764,67589.0,67585.0,0.14796]
[1729848879803,0.22144961,67587.0,67585.0,0.14796]
[1729848880033,0.37195342,67587.0,67585.0,0.14796]
[1729848880256,0.37195342,67587.0,67570.0,0.005]
[1729848880257,0.15050381,67586.0,67570.0,0.005]
[1729848880478,0.29846381,67586.0,67581.0,0.147969]
[1729848880691,0.51991342,67586.0,67581.0,0.147969]
[1729848881131,0.51991342,67586.0,67582.0,0.147967]
[1729848881587,0.29846381,67586.0,67582.0,0.147967]
[1729848882729,0.29846381,67586.0,67582.0,0.142967]
[1729848883392,0.15050381,67586.0,67578.0,0.295954]
[1729848883637,0.29846281,67586.0,67581.0,0.147969]
[1729848884291,0.29846281,67586.0,67570.0,0.005]
[1729848884292,0.15050381,67586.0,67584.0,0.147962]
[1729848884532,0.15050381,67586.0,67582.0,0.147966]
[1729848885200,0.15050381,67586.0,67578.0,0.295952]
[1729848885449,0.147962,67585.0,67581.0,0.14797]
[1729848889013,0.15050381,67586.0,67578.0,0.295952]
[1729848889014,0.147964,67584.0,67580.0,0.147971]
[1729848889950,0.147964,67584.0,67580.0,0.142971]
[1729848890602,0.44642481,67586.0,67578.0,0.295952]
[1729848890819,0.59438581,67586.0,67581.0,0.14797]
[1729848891037,0.147962,67585.0,67581.0,0.14797]
[1729848891717,0.29846281,67586.0,67582.0,0.147967]
[1729848891937,0.15050381,67586.0,67579.0,0.295949]
[1729848892159,0.15050381,67586.0,67572.0,0.0792]
[1729848892160,0.15050381,67586.0,67573.0,0.295974]
[1729848892386,0.147961,67585.0,67581.0,0.14797]
[1729848892606,0.15050381,67586.0,67583.0,0.147964]
[1729848892839,0.15050381,67586.0,67572.0,0.0792]
[1729848893076,0.15050381,67586.0,67573.0,0.01499115]
[1729848893298,0.15050381,67586.0,67581.0,0.295938]
[1729848893516,0.29846381,67586.0,67581.0,0.14797]
[1729848894427,0.147964,67584.0,67582.0,0.00462758]
[1729848894640,0.39840975,67586.0,67581.0,0.14797]
[1729848895085,0.29846381,67586.0,67581.0,0.14797]
[1729848895311,0.29846381,67586.0,67582.0,0.00462759]
[1729848895539,0.29846381,67586.0,67581.0,0.14797]
[1729848895750,0.29846381,67586.0,67582.0,0.00462759]
[1729848895960,0.29846381,67586.0,67581.0,0.14797]
[1729848896179,0.29846381,67586.0,67582.0,0.00462759]
[1729848896394,0.29846381,67586.0,67583.0,0.00462759]
[1729848896813,0.29846381,67586.0,67581.0,0.14797]
[1729848897031,0.29846381,67586.0,67582.0,0.00462758]
[1729848897281,0.29846381,67586.0,67583.0,0.00462758]
[1729848897536,0.147962,67585.0,67583.0,0.00462758]
[1729848898019,0.147964,67584.0,67580.0,0.14797]
[1729848898254,0.147964,67584.0,67581.0,0.00462759]
[1729848898489,0.147964,67584.0,67582.0,0.00462759]
[1729848898722,0.147964,67584.0,67583.0,0.00462759]
[1729848899688,0.29846781,67584.0,67583.0,0.00462759]
[1729848899917,0.147974,67580.0,67575.0,0.147982]
[1729848900142,0.147974,67580.0,67573.0,0.295976]
[1729848900143,0.147974,67580.0,67576.0,0.147981]
[1729848900375,0.147979,67577.0,67576.0,0.00462788]
[1729848900634,0.38017881,67579.0,67576.0,0.00462788]
[1729848900847,0.23220381,67579.0,67577.0,0.00462788]
[1729848901077,0.23220381,67579.0,67578.0,0.00462788]
[1729848901336,0.38017781,67579.0,67578.0,0.00462788]
[1729848902210,0.38017981,67579.0,67573.0,0.147986]
[1729848902437,0.38017981,67579.0,67574.0,0.00462805]
[1729848902655,0.147978,67578.0,67575.0,0.00462805]
[1729848902875,0.147981,67577.0,67576.0,0.00462805]
[1729848903092,0.15050381,67578.0,67576.0,0.00462805]
[1729848903326,0.15050381,67578.0,67574.0,0.147984]
[1729848903811,0.15050381,67578.0,67575.0,0.00462809]
[1729848904052,0.15050381,67578.0,67575.0,0.147983]
[1729848905194,0.37195342,67578.0,67568.0,0.295994]
[1729848905424,0.295972,67574.0,67569.0,0.00462812]
[1729848905640,0.14799,67572.0,67570.0,0.00462812]
[1729848905858,0.14799,67572.0,67565.0,0.296007]
[1729848905859,0.29849381,67572.0,67565.0,0.296007]
[1729848906096,0.20743958,67571.0,67567.0,0.148]
[1729848906318,0.20743958,67571.0,67558.0,0.29604]
[1729848906319,0.0784,67567.0,67558.0,0.29604]
[1729848906550,0.148006,67565.0,67560.0,0.00462866]
[1729848906769,0.148006,67565.0,67561.0,0.15264166]
[1729848906984,0.148006,67565.0,67558.0,0.29604]
[1729848906985,0.15050381,67566.0,67562.0,0.15264066]
[1729848907220,0.29850781,67566.0,67563.0,0.00462866]
[1729848907454,0.29850781,67566.0,67553.0,0.0753]
[1729848907455,0.296028,67561.0,67543.0,0.296107]
[1729848907714,0.40551981,67560.0,67547.0,0.29609]
[1729848907941,0.61328651,67560.0,67543.0,0.444159]
[1729848908167,0.61328651,67560.0,67541.0,0.000837]
[1729848908400,0.61528651,67560.0,67545.0,0.148048]
[1729848908617,0.76579032,67560.0,67545.0,0.148048]
[1729848908834,0.76579032,67560.0,67544.0,0.5922]
[1729848909053,0.87193001,67560.0,67549.0,0.148039]
[1729848909279,0.60292289,67560.0,67547.0,0.296086]
[1729848909494,0.40351981,67560.0,67549.0,0.148039]
[1729848909728,0.005,67558.0,67551.0,0.143873]
[1729848909940,0.44654981,67557.0,67551.0,0.143873]
[1729848910175,0.44654981,67557.0,67547.0,0.296086]
[1729848910176,0.15050381,67557.0,67547.0,0.296086]
[1729848910401,0.148031,67554.0,67548.0,0.148041]
[1729848910617,0.15050381,67553.0,67549.0,0.14804]
[1729848910834,0.15050381,67553.0,67550.0,0.148037]
[1729848912203,0.29853681,67553.0,67548.0,0.148041]
[1729848912649,0.148034,67552.0,67547.0,0.148043]
[1729848912875,0.15050381,67551.0,67548.0,0.148041]
[1729848913326,0.15050381,67551.0,67549.0,0.148038]
[1729848914450,0.15050381,67551.0,67541.0,0.000837]
[1729848914451,0.15050381,67551.0,67546.0,0.296094]
[1729848914671,0.15050381,67551.0,67548.0,0.148041]
[1729848915590,0.15050381,67551.0,67541.0,0.000837]
[1729848915591,0.22144961,67550.0,67542.0,0.296112]
[1729848915815,0.37195342,67550.0,67545.0,0.148049]
[1729848916039,0.37195342,67550.0,67547.0,0.148044]
[1729848916040,0.15050381,67550.0,67547.0,0.148044]
[1729848916260,0.15050381,67550.0,67545.0,0.148048]
[1729848916479,0.29854181,67550.0,67545.0,0.148048]
[1729848917407,0.37195342,67549.0,67546.0,0.148046]
[1729848917628,0.37195342,67549.0,67543.0,0.148052]
[1729848917629,0.148044,67548.0,67543.0,0.148052]
[1729848917876,0.45015342,67549.0,67544.0,0.14805]
[1729848917877,0.15050381,67547.0,67544.0,0.14805]
[1729848918308,0.15050381,67547.0,67542.0,0.148054]
[1729848918739,0.24951045,67547.0,67542.0,0.148054]
[1729848918949,0.15050381,67547.0,67541.0,0.29695]
[1729848919164,0.15050381,67547.0,67543.0,0.148052]
[1729848920526,0.29854881,67547.0,67541.0,0.445006]
[1729848920741,0.15050381,67547.0,67541.0,0.29695]
[1729848920968,0.15050381,67547.0,67543.0,0.148052]
[1729848921407,0.15050381,67547.0,67541.0,0.000837]
[1729848921625,0.29854981,67547.0,67541.0,0.148894]
[1729848921868,0.29854981,67547.0,67542.0,0.148055]
[1729848922124,0.15050381,67547.0,67542.0,0.296112]
[1729848922344,0.005,67552.0,67541.0,0.080937]
[1729848922580,0.22144961,67548.0,67542.0,0.296112]
[1729848922824,0.22144961,67548.0,67547.0,0.148045]
[1729848923494,0.15050381,67551.0,67548.0,0.148042]
[1729848923753,0.15050381,67551.0,67549.0,0.148039]
[1729848924003,0.15050381,67551.0,67547.0,0.148044]
[1729848924291,0.15050381,67551.0,67542.0,0.296112]
[1729848924527,0.15215181,67551.0,67542.0,0.296112]
[1729848924772,0.15215181,67551.0,67544.0,0.296103]
[1729848925004,0.15215181,67551.0,67541.0,0.080937]
[1729848925005,0.15215181,67551.0,67549.0,0.148039]
[1729848925241,0.15215181,67551.0,67541.0,0.080937]
[1729848925242,0.001648,67551.0,67542.0,0.592224]
[1729848925475,0.001648,67551.0,67550.0,0.148038]
[1729848930532,0.001648,67551.0,67543.0,0.296107]
[1729848930533,0.079448,67551.0,67548.0,0.148042]
[1729848930746,0.079448,67551.0,67542.0,0.148056]
[1729848930966,0.079448,67551.0,67547.0,0.148043]
[1729848931187,0.079448,67551.0,67544.0,0.296103]
[1729848931188,0.37195342,67550.0,67544.0,0.296103]
[1729848931420,0.37195342,67550.0,67549.0,0.14804]
[1729848931421,0.15050381,67550.0,67549.0,0.14804]
[1729848931660,0.15050381,67550.0,67546.0,0.148045]
[1729848931924,0.15050381,67550.0,67545.0,0.296098]
[1729848931925,0.15050381,67550.0,67547.0,0.148044]
[1729848932151,0.15050381,67550.0,67545.0,0.296098]
[1729848932152,0.15050381,67550.0,67549.0,0.14804]
[1729848935180,0.001648,67551.0,67545.0,0.372298]
[1729848935181,0.001648,67551.0,67550.0,0.148038]
[1729848940649,0.003936,67551.0,67550.0,0.148038]
[1729848950549,0.003936,67551.0,67547.0,0.296914]
[1729848950550,0.003936,67551.0,67548.0,0.296085]
[1729848950774,0.003936,67551.0,67547.0,0.148867]
[1729848951022,0.151973,67551.0,67547.0,0.000824]
[1729848951251,0.1967754,67551.0,67547.0,0.000824]
[1729848951684,0.151972,67551.0,67547.0,0.000824]
[1729848951908,0.148039,67550.0,67547.0,0.000824]
[1729848952352,0.150327,67550.0,67547.0,0.000824]
[1729848953014,0.19454964,67550.0,67547.0,0.000824]
[1729848953250,0.002288,67550.0,67547.0,0.000824]
[1729848953692,0.002288,67550.0,67549.0,0.14804]
[1729848953929,0.002288,67550.0,67549.0,0.1510003]
[1729848954156,0.002288,67550.0,67549.0,0.2313003]
[1729848954375,0.002288,67550.0,67549.0,0.32334]
[1729848955080,0.002288,67550.0,67549.0,0.33334]
[1729848955526,0.002288,67550.0,67549.0,0.34074624]
[1729848956667,0.002288,67550.0,67549.0,0.33334]
[1729848956853,0.002288,67550.0,67549.0,0.34074623]
[1729848957104,0.002288,67550.0,67549.0,0.36193042]
[1729848957792,0.002288,67550.0,67549.0,0.61243423]
[1729848958462,0.002288,67550.0,67549.0,0.605028]
[1729848960522,0.002288,67550.0,67549.0,0.58466781]
[1729848961272,0.002288,67550.0,67549.0,0.334164]
[1729848961704,0.002288,67550.0,67549.0,0.324164]
[1729848961931,0.002288,67550.0,67549.0,0.334164]
[1729848964871,0.002288,67550.0,67549.0,0.324164]
[1729848965100,0.002288,67550.0,67549.0,0.334164]
[1729848967344,0.001648,67551.0,67550.0,0.153038]
[1729848969645,0.001648,67551.0,67549.0,0.430243]
[1729848970138,0.001648,67551.0,67550.0,0.148038]
[1729848973733,0.149685,67551.0,67549.0,0.000824]
[1729848974209,0.001648,67551.0,67549.0,0.000824]
[1729848978053,0.001648,67551.0,67550.0,0.148038]
[1729848983104,0.001648,67551.0,67549.0,0.000824]
[1729848983572,0.148038,67550.0,67549.0,0.000824]
[1729848984458,0.149684,67551.0,67549.0,0.000824]
[1729848985582,0.001648,67551.0,67549.0,0.000824]
[1729848985804,0.148038,67550.0,67549.0,0.000824]
[1729848988236,0.001648,67551.0,67549.0,0.000824]
[1729848989130,0.149685,67551.0,67549.0,0.000824]
[1729848990626,0.148038,67550.0,67549.0,0.000824]
[1729848991284,0.001648,67551.0,67549.0,0.000824]
[1729848992389,0.149684,67551.0,67549.0,0.000824]
[1729848993523,0.0826,67550.0,67549.0,0.000824]
[1729848994170,0.230638,67550.0,67549.0,0.000824]
[1729848994399,0.001648,67551.0,67550.0,0.148038]
[1729849003652,0.001648,67551.0,67549.0,0.000824]
[1729849004323,0.001648,67551.0,67549.0,0.148863]
[1729849004538,0.001648,67551.0,67549.0,0.000824]
[1729849004997,0.001648,67551.0,67549.0,0.148863]
[1729849007342,0.001648,67551.0,67549.0,0.000824]
[1729849007562,0.001648,67551.0,67549.0,0.148864]
[1729849007990,0.001648,67551.0,67549.0,0.000824]
[1729849008227,0.001648,67551.0,67549.0,0.148864]
[1729849008715,0.001648,67551.0,67550.0,0.148038]
[1729849010272,0.001648,67551.0,67549.0,0.000824]
[1729849012306,0.001648,67551.0,67549.0,0.148863]
[1729849012514,0.001648,67551.0,67549.0,0.000824]
[1729849013388,0.001648,67551.0,67549.0,0.148864]
[1729849016047,0.001648,67551.0,67550.0,0.148038]
[1729849019202,0.001648,67551.0,67549.0,0.000824]
[1729849019434,0.001648,67551.0,67549.0,0.148863]
[1729849020131,0.001648,67551.0,67550.0,0.148038]
[1729849022514,0.001648,67551.0,67549.0,0.148864]
[1729849023225,0.001648,67551.0,67549.0,0.000824]
[1729849023463,0.079348,67551.0,67549.0,0.000824]
[1729849024235,0.36996505,67550.0,67549.0,0.000824]
[1729849024474,0.39844181,67550.0,67549.0,0.000824]
[1729849024710,0.62846195,67550.0,67549.0,0.000824]
[1729849024941,0.71702627,67550.0,67549.0,0.000824]
[1729849025646,0.47404181,67550.0,67549.0,0.000824]
[1729849025893,0.71669983,67550.0,67549.0,0.000824]
[1729849026822,0.41815802,67550.0,67549.0,0.000824]
[1729849027251,0.32325802,67550.0,67549.0,0.000824]
[1729849027541,0.38273245,67550.0,67549.0,0.000824]
[1729849027782,0.23469445,67550.0,67549.0,0.000824]
[1729849029343,0.38273245,67550.0,67549.0,0.000824]
[1729849029770,0.228638,67550.0,67549.0,0.000824]
[1729849031484,0.29503308,67550.0,67549.0,0.000824]
[1729849032574,1.02013794,67550.0,67549.0,0.000824]
[1729849032806,0.90068833,67550.0,67549.0,0.000824]
[1729849033054,0.88868833,67550.0,67549.0,0.000824]
[1729849034143,0.89368833,67550.0,67549.0,0.000824]
[1729849035035,0.89868833,67550.0,67549.0,0.000824]
[1729849036081,0.89868833,67550.0,67541.0,0.000837]
[1729849036082,0.293056,67542.0,67541.0,0.000837]
[1729849036320,0.78411556,67542.0,67541.0,0.000837]
[1729849036770,0.72303335,67542.0,67541.0,0.000837]
[1729849037016,0.83645262,67542.0,67541.0,0.000837]
[1729849037719,0.81434204,67542.0,67541.0,0.000837]
[1729849037968,0.58114372,67542.0,67541.0,0.000837]
[1729849038208,0.47075981,67542.0,67541.0,0.000837]
[1729849038434,0.51491774,67542.0,67541.0,0.000837]
[1729849038668,0.51490721,67542.0,67541.0,0.000837]
[1729849039382,0.51490558,67542.0,67541.0,0.000837]
[1729849039654,0.47075981,67542.0,67541.0,0.000837]
[1729849043807,0.59692189,67542.0,67541.0,0.000837]
[1729849044304,0.66310038,67542.0,67541.0,0.000837]